[Event "*** SCC Grand Prix: Titled Tuesday Blitz"]
[Site "Chess.com"]
[Date "2020.07.14"]
[Round "9"]
[White "annazero"]
[Black "Andrei_Belozerov"]
[Result "1-0"]
[WhiteElo "2405"]
[BlackElo "2564"]
[TimeControl "180+1"]
[EndTime "11:48:27 PDT"]
[Termination "annazero won by resignation"]

1. d4 {[%clk 0:03:00.9]} 1... d5 {[%clk 0:02:59.5]} 2. Bf4 {[%clk 0:03:00.1]}
2... Nf6 {[%clk 0:02:59.1]} 3. e3 {[%clk 0:02:59.9]} 3... c5 {[%clk 0:02:59.3]}
4. c3 {[%clk 0:03:00]} 4... Nc6 {[%clk 0:02:58.6]} 5. Nd2 {[%clk 0:03:00.2]}
5... cxd4 {[%clk 0:02:58.4]} 6. exd4 {[%clk 0:03:00.3]} 6... Bf5 {[%clk
0:02:59]} 7. Ngf3 {[%clk 0:02:53.3]} 7... e6 {[%clk 0:02:57.5]} 8. Nh4 {[%clk
0:02:53.4]} 8... Bg4 {[%clk 0:02:53.6]} 9. Qb3 {[%clk 0:02:49.9]} 9... Bd6
{[%clk 0:02:51.5]} 10. Qxb7 {[%clk 0:02:42.3]} 10... Bxf4 {[%clk 0:02:50.5]} 11.
Qxc6+ {[%clk 0:02:39]} 11... Kf8 {[%clk 0:02:50.6]} 12. Nhf3 {[%clk 0:02:19.1]}
12... Rb8 {[%clk 0:02:47.9]} 13. Qa6 {[%clk 0:02:16.5]} 13... g6 {[%clk
0:02:40.4]} 14. Bd3 {[%clk 0:02:12.6]} 14... Kg7 {[%clk 0:02:39.1]} 15. Rb1
{[%clk 0:02:12.5]} 15... Rb6 {[%clk 0:02:21.3]} 16. Qa4 {[%clk 0:02:10.2]} 16...
Qb8 {[%clk 0:02:18.8]} 17. Qc2 {[%clk 0:02:09.6]} 17... Qb7 {[%clk 0:01:48.3]}
18. h3 {[%clk 0:02:02.4]} 18... Bxf3 {[%clk 0:01:39.2]} 19. Nxf3 {[%clk
0:02:03.3]} 19... Rb8 {[%clk 0:01:39.4]} 20. b3 {[%clk 0:02:02.3]} 20... Qc7
{[%clk 0:01:33]} 21. O-O {[%clk 0:02:00.4]} 21... Rc6 {[%clk 0:00:52.5]} 22. c4
{[%clk 0:01:59.8]} 22... dxc4 {[%clk 0:00:51.9]} 23. bxc4 {[%clk 0:02:00.7]}
23... Rd8 {[%clk 0:00:51.8]} 24. Qe2 {[%clk 0:01:53.9]} 24... Nh5 {[%clk
0:00:39.9]} 25. Rfd1 {[%clk 0:01:36.6]} 25... Kg8 {[%clk 0:00:33.7]} 26. Qe4
{[%clk 0:01:19.9]} 26... Bh6 {[%clk 0:00:30]} 27. Bf1 {[%clk 0:01:18.2]} 27...
Bg7 {[%clk 0:00:27.5]} 28. Rd2 {[%clk 0:01:11.3]} 28... Nf6 {[%clk 0:00:26.6]}
29. Qe3 {[%clk 0:01:00.8]} 29... Rcd6 {[%clk 0:00:22.9]} 30. g3 {[%clk
0:00:45.2]} 30... Nd7 {[%clk 0:00:22.2]} 31. Rbd1 {[%clk 0:00:43.6]} 31... Nb8
{[%clk 0:00:22.2]} 32. d5 {[%clk 0:00:36.8]} 32... exd5 {[%clk 0:00:21.8]} 33.
cxd5 {[%clk 0:00:37.7]} 33... Nd7 {[%clk 0:00:18.1]} 34. Bg2 {[%clk 0:00:35.7]}
34... Qb6 {[%clk 0:00:18.1]} 35. Qe4 {[%clk 0:00:22.4]} 35... Nf6 {[%clk
0:00:17.8]} 36. Qc4 {[%clk 0:00:22.1]} 36... Qa5 {[%clk 0:00:16.1]} 37. Ne5
{[%clk 0:00:20.4]} 37... Re8 {[%clk 0:00:13.1]} 38. Nc6 {[%clk 0:00:19.6]} 38...
Qa3 {[%clk 0:00:13.3]} 39. Kh2 {[%clk 0:00:18.3]} 39... h5 {[%clk 0:00:12.9]}
40. Rd3 {[%clk 0:00:18.2]} 40... Qb2 {[%clk 0:00:10.9]} 41. R1d2 {[%clk
0:00:18.1]} 41... Qb1 {[%clk 0:00:11.2]} 42. Re3 {[%clk 0:00:15.4]} 42... Rxe3
{[%clk 0:00:10.5]} 43. fxe3 {[%clk 0:00:16.3]} 43... Qb6 {[%clk 0:00:10]} 44.
Qf4 {[%clk 0:00:14]} 44... Qc7 {[%clk 0:00:08.8]} 45. e4 {[%clk 0:00:09.8]}
45... Nd7 {[%clk 0:00:08.5]} 46. e5 {[%clk 0:00:06.8]} 46... Rxc6 {[%clk
0:00:08.7]} 47. dxc6 {[%clk 0:00:07.2]} 47... Nxe5 {[%clk 0:00:09.2]} 48. Rd7
{[%clk 0:00:05.7]} 48... Qc8 {[%clk 0:00:07.5]} 49. Rxa7 {[%clk 0:00:05.1]}
49... h4 {[%clk 0:00:06.7]} 50. gxh4 {[%clk 0:00:03.9]} 50... f5 {[%clk
0:00:06.6]} 51. Bd5+ {[%clk 0:00:01.7]} 51... Kh7 {[%clk 0:00:05.7]} 52. h5
{[%clk 0:00:02.6]} 52... Qf8 {[%clk 0:00:04]} 53. hxg6+ {[%clk 0:00:03.5]} 53...
Kxg6 {[%clk 0:00:04.3]} 54. Qg3+ {[%clk 0:00:03.5]} 54... Ng4+ {[%clk
0:00:04.3]} 55. hxg4 {[%clk 0:00:03.2]} 55... Qh8+ {[%clk 0:00:04.1]} 56. Kg2
{[%clk 0:00:03.4]} 56... Be5 {[%clk 0:00:03.9]} 57. gxf5+ {[%clk 0:00:04.3]}
57... Kxf5 {[%clk 0:00:04.1]} 58. Rf7+ {[%clk 0:00:04.2]} 58... Bf6 {[%clk
0:00:03.5]} 59. Qf3+ {[%clk 0:00:04.6]} 59... Kg5 {[%clk 0:00:03.1]} 60. Qxf6+
{[%clk 0:00:05.5]} 60... Qxf6 {[%clk 0:00:02.3]} 61. Rxf6 {[%clk 0:00:06.4]}
61... Kxf6 {[%clk 0:00:03.1]} 62. c7 {[%clk 0:00:07.3]} 62... Ke5 {[%clk
0:00:03.8]} 63. c8=Q {[%clk 0:00:07.7]} 63... Kxd5 {[%clk 0:00:03.9]} 64. a4
{[%clk 0:00:08.6]} 1-0

[Event "*** SCC Grand Prix: Titled Tuesday Blitz"]
[Site "Chess.com"]
[Date "2020.07.14"]
[Round "9"]
[White "HouseOfDurin"]
[Black "dpopadic"]
[Result "0-1"]
[WhiteElo "2033"]
[BlackElo "2318"]
[TimeControl "180+1"]
[EndTime "11:48:27 PDT"]
[Termination "dpopadic won by checkmate"]

1. d4 {[%clk 0:03:00.9]} 1... Nf6 {[%clk 0:02:59.1]} 2. Bg5 {[%clk 0:03:01.3]}
2... e6 {[%clk 0:02:58.9]} 3. e4 {[%clk 0:03:00.8]} 3... h6 {[%clk 0:02:58.6]}
4. Bxf6 {[%clk 0:03:00.9]} 4... Qxf6 {[%clk 0:02:58.7]} 5. e5 {[%clk 0:03:01.6]}
5... Qd8 {[%clk 0:02:58.7]} 6. f4 {[%clk 0:03:01.9]} 6... d6 {[%clk 0:02:53.9]}
7. Nf3 {[%clk 0:03:01.3]} 7... Be7 {[%clk 0:02:53.9]} 8. c4 {[%clk 0:02:53.9]}
8... c5 {[%clk 0:02:53.5]} 9. dxc5 {[%clk 0:02:51.5]} 9... dxe5 {[%clk
0:02:53.2]} 10. Qxd8+ {[%clk 0:02:52.3]} 10... Bxd8 {[%clk 0:02:51.8]} 11. Nxe5
{[%clk 0:02:45.2]} 11... Be7 {[%clk 0:02:51.4]} 12. Nd3 {[%clk 0:02:42.3]} 12...
Nd7 {[%clk 0:02:45]} 13. Nc3 {[%clk 0:02:31.9]} 13... Nxc5 {[%clk 0:02:41.8]}
14. Nxc5 {[%clk 0:02:29.9]} 14... Bxc5 {[%clk 0:02:41.8]} 15. g3 {[%clk
0:02:24.5]} 15... Bd7 {[%clk 0:02:28.9]} 16. Bg2 {[%clk 0:02:24]} 16... O-O-O
{[%clk 0:02:28.2]} 17. O-O-O {[%clk 0:02:16.9]} 17... Bb4 {[%clk 0:02:26.4]} 18.
Kc2 {[%clk 0:02:15.8]} 18... Bxc3 {[%clk 0:01:59.4]} 19. Kxc3 {[%clk 0:02:16.7]}
19... Kc7 {[%clk 0:01:58.2]} 20. Rd2 {[%clk 0:02:09.7]} 20... Bc8 {[%clk
0:01:57.7]} 21. Rhd1 {[%clk 0:02:08.7]} 21... Rxd2 {[%clk 0:01:57]} 22. Rxd2
{[%clk 0:02:09.6]} 22... b6 {[%clk 0:01:57]} 23. b4 {[%clk 0:02:06.8]} 23... f6
{[%clk 0:01:56.9]} 24. a4 {[%clk 0:02:00.1]} 24... Re8 {[%clk 0:01:53.3]} 25.
Bh3 {[%clk 0:01:42.8]} 25... g5 {[%clk 0:01:52.1]} 26. Re2 {[%clk 0:01:38.7]}
26... gxf4 {[%clk 0:01:51.4]} 27. gxf4 {[%clk 0:01:37.4]} 27... Kd6 {[%clk
0:01:42.1]} 28. Rd2+ {[%clk 0:01:26.6]} 28... Kc7 {[%clk 0:01:41.8]} 29. b5
{[%clk 0:01:22.8]} 29... Rg8 {[%clk 0:01:37.1]} 30. Re2 {[%clk 0:01:13.8]} 30...
Kd6 {[%clk 0:01:36]} 31. Kb4 {[%clk 0:01:13.5]} 31... Rg1 {[%clk 0:01:30.8]} 32.
Rd2+ {[%clk 0:01:13.8]} 32... Ke7 {[%clk 0:01:29.6]} 33. Rg2 {[%clk 0:00:58.5]}
33... Rxg2 {[%clk 0:01:18.5]} 34. Bxg2 {[%clk 0:00:59.4]} 34... Kd6 {[%clk
0:01:18.7]} 35. Bh3 {[%clk 0:00:37.2]} 35... Bd7 {[%clk 0:01:18.1]} 36. Bg4
{[%clk 0:00:26.3]} 36... Be8 {[%clk 0:01:17.5]} 37. a5 {[%clk 0:00:24.7]} 37...
e5 {[%clk 0:01:13.7]} 38. fxe5+ {[%clk 0:00:23.8]} 38... fxe5 {[%clk 0:01:14]}
39. axb6 {[%clk 0:00:23.7]} 39... axb6 {[%clk 0:01:13.5]} 40. Bf5 {[%clk
0:00:22.3]} 40... Bf7 {[%clk 0:01:07.6]} 41. h4 {[%clk 0:00:20.5]} 41... Bh5
{[%clk 0:01:03.5]} 42. Be4 {[%clk 0:00:20.3]} 42... Be2 {[%clk 0:01:02.4]} 43.
Bd5 {[%clk 0:00:18.5]} 43... Bd3 {[%clk 0:01:00.2]} 44. Kc3 {[%clk 0:00:18.3]}
44... Bf1 {[%clk 0:00:59.1]} 45. Be4 {[%clk 0:00:16.7]} 45... Kc5 {[%clk
0:00:58.3]} 46. Bd5 {[%clk 0:00:16.9]} 46... Be2 {[%clk 0:00:58]} 47. Be6 {[%clk
0:00:16.1]} 47... Bf3 {[%clk 0:00:56.4]} 48. Bf7 {[%clk 0:00:15.5]} 48... e4
{[%clk 0:00:54.1]} 49. Bd5 {[%clk 0:00:14.2]} 49... Bg2 {[%clk 0:00:52.3]} 50.
Kd2 {[%clk 0:00:12.9]} 50... Kd4 {[%clk 0:00:50.1]} 51. Ke2 {[%clk 0:00:09.8]}
51... Bf3+ {[%clk 0:00:48]} 52. Ke1 {[%clk 0:00:09.6]} 52... Bg4 {[%clk
0:00:47]} 53. Bf7 {[%clk 0:00:07.7]} 53... e3 {[%clk 0:00:46.8]} 54. h5 {[%clk
0:00:07.5]} 54... Bf3 {[%clk 0:00:46.1]} 55. Kf1 {[%clk 0:00:07]} 55... Bd1
{[%clk 0:00:45]} 56. Ke1 {[%clk 0:00:07]} 56... Bc2 {[%clk 0:00:45.1]} 57. Ke2
{[%clk 0:00:06.7]} 57... Bd3+ {[%clk 0:00:45.2]} 58. Kf3 {[%clk 0:00:06]} 58...
Bf1 {[%clk 0:00:43.8]} 59. Bg6 {[%clk 0:00:04.4]} 59... Bxc4 {[%clk 0:00:43.1]}
60. Bc2 {[%clk 0:00:02.8]} 60... Bxb5 {[%clk 0:00:40.8]} 61. Bb3 {[%clk
0:00:02.7]} 61... Bc6+ {[%clk 0:00:40.7]} 62. Ke2 {[%clk 0:00:02.5]} 62... b5
{[%clk 0:00:40.6]} 63. Bf7 {[%clk 0:00:02.5]} 63... b4 {[%clk 0:00:40.1]} 64.
Ke1 {[%clk 0:00:02.9]} 64... Be4 {[%clk 0:00:39.7]} 65. Kd1 {[%clk 0:00:03.2]}
65... Bd3 {[%clk 0:00:39.9]} 66. Bg6 {[%clk 0:00:03.7]} 66... Bc4 {[%clk
0:00:40.1]} 67. Ke1 {[%clk 0:00:03.5]} 67... b3 {[%clk 0:00:40.4]} 68. Kd1
{[%clk 0:00:03.9]} 68... Bd3 {[%clk 0:00:39.4]} 69. Ke1 {[%clk 0:00:02.7]} 69...
b2 {[%clk 0:00:38]} 70. Bxd3 {[%clk 0:00:03]} 70... Kxd3 {[%clk 0:00:37.8]} 71.
Kf1 {[%clk 0:00:03.9]} 71... b1=Q+ {[%clk 0:00:37.5]} 72. Kg2 {[%clk 0:00:04.8]}
72... e2 {[%clk 0:00:36]} 73. Kh3 {[%clk 0:00:05.7]} 73... e1=Q {[%clk
0:00:35.2]} 74. Kh2 {[%clk 0:00:05.7]} 74... Qc2+ {[%clk 0:00:34.3]} 75. Kh3
{[%clk 0:00:05.1]} 75... Qe3+ {[%clk 0:00:34.1]} 76. Kg4 {[%clk 0:00:05.1]}
76... Qc4+ {[%clk 0:00:34]} 77. Kf5 {[%clk 0:00:05.2]} 77... Qg5# {[%clk
0:00:33.7]} 0-1

[Event "*** SCC Grand Prix: Titled Tuesday Blitz"]
[Site "Chess.com"]
[Date "2020.07.14"]
[Round "9"]
[White "Supernotar"]
[Black "Oneofmyturns"]
[Result "1/2-1/2"]
[WhiteElo "2832"]
[BlackElo "2712"]
[TimeControl "180+1"]
[EndTime "11:48:28 PDT"]
[Termination "Game drawn by repetition"]

1. d4 {[%clk 0:03:00.9]} 1... Nf6 {[%clk 0:03:00]} 2. c4 {[%clk 0:02:56.9]} 2...
e6 {[%clk 0:03:00.4]} 3. Nf3 {[%clk 0:02:56.6]} 3... d5 {[%clk 0:03:00.3]} 4. e3
{[%clk 0:02:56.6]} 4... Be7 {[%clk 0:02:58.8]} 5. Nbd2 {[%clk 0:02:56.3]} 5...
O-O {[%clk 0:02:55.3]} 6. b3 {[%clk 0:02:56.3]} 6... c5 {[%clk 0:02:55.3]} 7.
Bb2 {[%clk 0:02:53.8]} 7... b6 {[%clk 0:02:55.4]} 8. Bd3 {[%clk 0:02:53]} 8...
Bb7 {[%clk 0:02:52.8]} 9. O-O {[%clk 0:02:52.8]} 9... Nbd7 {[%clk 0:02:47.9]}
10. Qe2 {[%clk 0:02:52.9]} 10... Rc8 {[%clk 0:02:42.3]} 11. e4 {[%clk
0:02:52.5]} 11... dxe4 {[%clk 0:02:37.4]} 12. Nxe4 {[%clk 0:02:53.4]} 12... Nxe4
{[%clk 0:02:37]} 13. Bxe4 {[%clk 0:02:54.3]} 13... Bxe4 {[%clk 0:02:37.1]} 14.
Qxe4 {[%clk 0:02:54.9]} 14... Nf6 {[%clk 0:02:37.6]} 15. Qe2 {[%clk 0:02:51.1]}
15... cxd4 {[%clk 0:02:37.1]} 16. Nxd4 {[%clk 0:02:50.3]} 16... Rc7 {[%clk
0:02:37.5]} 17. Rad1 {[%clk 0:02:47.9]} 17... Qa8 {[%clk 0:02:33.3]} 18. Rd3
{[%clk 0:02:35.3]} 18... Rd7 {[%clk 0:02:27]} 19. Rfd1 {[%clk 0:02:34.1]} 19...
Rfd8 {[%clk 0:02:26]} 20. Nf3 {[%clk 0:02:28.3]} 20... Rxd3 {[%clk 0:01:54.1]}
21. Rxd3 {[%clk 0:02:29.2]} 21... Rxd3 {[%clk 0:01:54.4]} 22. Qxd3 {[%clk
0:02:29.8]} 22... Qe4 {[%clk 0:01:55]} 23. Qxe4 {[%clk 0:02:27.8]} 23... Nxe4
{[%clk 0:01:55.9]} 24. Kf1 {[%clk 0:02:27.4]} 24... Bf6 {[%clk 0:01:54]} 25. Ne5
{[%clk 0:02:23.1]} 25... Nc5 {[%clk 0:01:43.6]} 26. Ke2 {[%clk 0:02:20]} 26...
Kf8 {[%clk 0:01:38.8]} 27. b4 {[%clk 0:02:17.1]} 27... Nb7 {[%clk 0:01:32.9]}
28. Kd3 {[%clk 0:02:06.3]} 28... Ke8 {[%clk 0:01:21.4]} 29. Bd4 {[%clk
0:02:04.1]} 29... Bxe5 {[%clk 0:00:57.3]} 30. Bxe5 {[%clk 0:02:03.8]} 30... f6
{[%clk 0:00:58.2]} 31. Bb8 {[%clk 0:02:00.9]} 31... a6 {[%clk 0:00:58.3]} 32.
Bc7 {[%clk 0:01:25.5]} 32... b5 {[%clk 0:00:57.8]} 33. c5 {[%clk 0:01:18.6]}
33... Kd7 {[%clk 0:00:57.7]} 34. Bb6 {[%clk 0:01:16.2]} 34... Kc6 {[%clk
0:00:24.7]} 35. Kd4 {[%clk 0:01:13.2]} 35... Nd6 {[%clk 0:00:24.5]} 36. cxd6
{[%clk 0:01:11]} 36... Kxb6 {[%clk 0:00:25.4]} 37. d7 {[%clk 0:01:09.9]} 37...
Kc7 {[%clk 0:00:26.3]} 38. Kc5 {[%clk 0:01:08]} 38... Kxd7 {[%clk 0:00:26.6]}
39. Kb6 {[%clk 0:01:03.3]} 39... e5 {[%clk 0:00:26.5]} 40. Kxa6 {[%clk
0:00:51.1]} 40... Kc6 {[%clk 0:00:27.4]} 41. Ka5 {[%clk 0:00:48.8]} 41... e4
{[%clk 0:00:27.8]} 42. h4 {[%clk 0:00:42.5]} 42... f5 {[%clk 0:00:26.4]} 43. g3
{[%clk 0:00:40.5]} 43... g6 {[%clk 0:00:24.3]} 44. a4 {[%clk 0:00:39.9]} 44...
bxa4 {[%clk 0:00:20.6]} 45. b5+ {[%clk 0:00:36.8]} 45... Kb7 {[%clk 0:00:17.7]}
46. Kxa4 {[%clk 0:00:36.8]} 46... h6 {[%clk 0:00:10.1]} 47. Kb4 {[%clk 0:00:36]}
47... g5 {[%clk 0:00:10.6]} 48. Kc4 {[%clk 0:00:28.6]} 48... f4 {[%clk
0:00:09.6]} 49. hxg5 {[%clk 0:00:22.5]} 49... hxg5 {[%clk 0:00:10.5]} 50. g4
{[%clk 0:00:19.7]} 50... Kb6 {[%clk 0:00:06.7]} 51. Kd4 {[%clk 0:00:18.6]} 51...
e3 {[%clk 0:00:07.3]} 52. fxe3 {[%clk 0:00:18]} 52... f3 {[%clk 0:00:06.9]} 53.
Kd3 {[%clk 0:00:16.9]} 53... Kxb5 {[%clk 0:00:07.5]} 54. e4 {[%clk 0:00:15.9]}
54... Kc5 {[%clk 0:00:06.4]} 55. Ke3 {[%clk 0:00:14.9]} 55... Kc4 {[%clk
0:00:06]} 56. Kf2 {[%clk 0:00:11.9]} 56... Kc5 {[%clk 0:00:03.7]} 57. Kg3 {[%clk
0:00:09.7]} 57... Kc4 {[%clk 0:00:03.9]} 58. Kxf3 {[%clk 0:00:06.6]} 58... Kc5
{[%clk 0:00:04.3]} 59. Ke3 {[%clk 0:00:05.2]} 59... Kc4 {[%clk 0:00:04.7]} 60.
Kf2 {[%clk 0:00:02.8]} 60... Kc5 {[%clk 0:00:02]} 61. Kf3 {[%clk 0:00:02.4]}
61... Kd4 {[%clk 0:00:01.9]} 62. e5 {[%clk 0:00:02.9]} 62... Kxe5 {[%clk
0:00:02.4]} 63. Ke3 {[%clk 0:00:03.8]} 63... Kd5 {[%clk 0:00:03.1]} 64. Kd3
{[%clk 0:00:04.2]} 64... Ke5 {[%clk 0:00:04]} 65. Ke3 {[%clk 0:00:04.6]} 65...
Kd5 {[%clk 0:00:04.7]} 66. Kd3 {[%clk 0:00:05.1]} 66... Ke5 {[%clk 0:00:05.6]}
67. Ke3 {[%clk 0:00:05.4]} 1/2-1/2

[Event "*** SCC Grand Prix: Titled Tuesday Blitz"]
[Site "Chess.com"]
[Date "2020.07.14"]
[Round "9"]
[White "Shubinkirill2003"]
[Black "AryanTari"]
[Result "1/2-1/2"]
[WhiteElo "2657"]
[BlackElo "2861"]
[TimeControl "180+1"]
[EndTime "11:48:35 PDT"]
[Termination "Game drawn - insufficient material"]

1. e4 {[%clk 0:03:00.9]} 1... c6 {[%clk 0:02:55.4]} 2. d4 {[%clk 0:03:00.6]}
2... d5 {[%clk 0:02:53]} 3. exd5 {[%clk 0:03:01.5]} 3... cxd5 {[%clk 0:02:52.4]}
4. Bd3 {[%clk 0:03:02]} 4... Nc6 {[%clk 0:02:36.7]} 5. c3 {[%clk 0:03:01.2]}
5... Qc7 {[%clk 0:02:33.8]} 6. Ne2 {[%clk 0:03:00.6]} 6... Bg4 {[%clk
0:02:29.7]} 7. O-O {[%clk 0:02:59.7]} 7... e6 {[%clk 0:02:23.6]} 8. Qe1 {[%clk
0:02:59.5]} 8... Be7 {[%clk 0:02:23.8]} 9. Ng3 {[%clk 0:02:57.1]} 9... Nf6
{[%clk 0:02:22.9]} 10. h3 {[%clk 0:02:39.5]} 10... Bh5 {[%clk 0:02:22.8]} 11.
Nxh5 {[%clk 0:02:39]} 11... Nxh5 {[%clk 0:02:23.7]} 12. f4 {[%clk 0:02:37.5]}
12... O-O {[%clk 0:02:10.2]} 13. Be3 {[%clk 0:02:27.8]} 13... f5 {[%clk
0:01:56]} 14. Nd2 {[%clk 0:02:20.5]} 14... Bd6 {[%clk 0:01:53.8]} 15. Qh4 {[%clk
0:02:16]} 15... Nf6 {[%clk 0:01:41.5]} 16. Nf3 {[%clk 0:02:10.1]} 16... Rae8
{[%clk 0:01:17.1]} 17. Ne5 {[%clk 0:02:00.6]} 17... Ne4 {[%clk 0:01:14.4]} 18.
g4 {[%clk 0:01:54.7]} 18... Nxe5 {[%clk 0:01:10.8]} 19. fxe5 {[%clk 0:01:48.5]}
19... Be7 {[%clk 0:01:10.8]} 20. Qe1 {[%clk 0:01:43.9]} 20... Qd8 {[%clk
0:00:52.5]} 21. gxf5 {[%clk 0:01:24.6]} 21... Bh4 {[%clk 0:00:47.5]} 22. Qd1
{[%clk 0:01:14.6]} 22... exf5 {[%clk 0:00:45.6]} 23. Bxe4 {[%clk 0:01:05.4]}
23... dxe4 {[%clk 0:00:40.8]} 24. Kh1 {[%clk 0:00:41.4]} 24... Bg3 {[%clk
0:00:37]} 25. Kg2 {[%clk 0:00:22]} 25... f4 {[%clk 0:00:34.8]} 26. Qg4 {[%clk
0:00:21.6]} 26... g5 {[%clk 0:00:15.3]} 27. h4 {[%clk 0:00:17.3]} 27... h6
{[%clk 0:00:11]} 28. hxg5 {[%clk 0:00:14.6]} 28... Qxg5 {[%clk 0:00:11.7]} 29.
Kh3 {[%clk 0:00:07.6]} 29... Kh7 {[%clk 0:00:05.5]} 30. Qxg5 {[%clk 0:00:06.7]}
30... hxg5 {[%clk 0:00:05.6]} 31. Kg4 {[%clk 0:00:06.7]} 31... Kg6 {[%clk
0:00:05.1]} 32. c4 {[%clk 0:00:05.6]} 32... Rh8 {[%clk 0:00:04.7]} 33. Rh1
{[%clk 0:00:04.9]} 33... Bh2 {[%clk 0:00:04]} 34. Bf2 {[%clk 0:00:04.3]} 34...
e3 {[%clk 0:00:03.7]} 35. Be1 {[%clk 0:00:04.6]} 35... Ref8 {[%clk 0:00:03.8]}
36. Kf3 {[%clk 0:00:04.1]} 36... Kf5 {[%clk 0:00:03.6]} 37. Ke2 {[%clk
0:00:03.6]} 37... g4 {[%clk 0:00:04.2]} 38. Kd3 {[%clk 0:00:03.7]} 38... f3
{[%clk 0:00:04.3]} 39. d5 {[%clk 0:00:02.7]} 39... Bf4 {[%clk 0:00:04.8]} 40.
Rxh8 {[%clk 0:00:01.8]} 40... Rxh8 {[%clk 0:00:05.7]} 41. e6 {[%clk 0:00:02.6]}
41... f2 {[%clk 0:00:06.3]} 42. Bc3 {[%clk 0:00:02.8]} 42... Rg8 {[%clk
0:00:06.8]} 43. e7 {[%clk 0:00:02.8]} 43... g3 {[%clk 0:00:07.2]} 44. d6 {[%clk
0:00:01.8]} 44... Bxd6 {[%clk 0:00:07.4]} 45. Kxe3 {[%clk 0:00:02.2]} 45... g2
{[%clk 0:00:07.2]} 46. Kxf2 {[%clk 0:00:02.4]} 46... Bc5+ {[%clk 0:00:07.8]} 47.
Kf3 {[%clk 0:00:02.6]} 47... g1=Q {[%clk 0:00:08.5]} 48. Rxg1 {[%clk 0:00:02.2]}
48... Bxg1 {[%clk 0:00:09.4]} 49. b4 {[%clk 0:00:02.1]} 49... Bb6 {[%clk
0:00:09.4]} 50. c5 {[%clk 0:00:02.3]} 50... Bc7 {[%clk 0:00:10.1]} 51. b5 {[%clk
0:00:02.7]} 51... Re8 {[%clk 0:00:10.7]} 52. Bb4 {[%clk 0:00:03.2]} 52... Rxe7
{[%clk 0:00:10.6]} 53. b6 {[%clk 0:00:03.6]} 53... Be5 {[%clk 0:00:08.5]} 54. c6
{[%clk 0:00:03.7]} 54... Rf7 {[%clk 0:00:08.1]} 55. bxa7 {[%clk 0:00:02.9]}
55... Ke6+ {[%clk 0:00:06]} 56. Ke2 {[%clk 0:00:02.1]} 56... Rf2+ {[%clk
0:00:01.8]} 57. Kxf2 {[%clk 0:00:02]} 57... Bd4+ {[%clk 0:00:02.3]} 58. Ke2
{[%clk 0:00:02.9]} 58... Bxa7 {[%clk 0:00:03.2]} 59. cxb7 {[%clk 0:00:03.4]}
59... Kd7 {[%clk 0:00:03.7]} 60. Bc5 {[%clk 0:00:03.4]} 60... Bb8 {[%clk
0:00:03.5]} 61. a4 {[%clk 0:00:03.5]} 61... Kc6 {[%clk 0:00:04.2]} 62. Bd4
{[%clk 0:00:03.2]} 62... Kxb7 {[%clk 0:00:04.8]} 63. Kd3 {[%clk 0:00:03.8]}
63... Ka6 {[%clk 0:00:05.4]} 64. Kc4 {[%clk 0:00:04.3]} 64... Kb7 {[%clk
0:00:06]} 65. Kb3 {[%clk 0:00:04.7]} 65... Ka8 {[%clk 0:00:06.6]} 66. Kc4 {[%clk
0:00:05.1]} 66... Ba7 {[%clk 0:00:07.2]} 67. Kb5 {[%clk 0:00:05.7]} 67... Bxd4
{[%clk 0:00:07.3]} 68. a5 {[%clk 0:00:06.2]} 68... Bg1 {[%clk 0:00:08]} 69. a6
{[%clk 0:00:06.9]} 69... Ba7 {[%clk 0:00:08.9]} 70. Kc6 {[%clk 0:00:06.8]} 70...
Bb8 {[%clk 0:00:09.3]} 71. a7 {[%clk 0:00:07.7]} 71... Bxa7 {[%clk 0:00:10.2]}
1/2-1/2